bitfinex/quotes_ETHUSD_20250611
["timestamp","ask_amount","ask_price","bid_price","bid_amount"]
[1749666078243,3.558,2811.2,2810.0,0.55]
[1749666078581,0.1776,2811.1,2810.6,0.55]
[1749666078867,0.1776,2811.1,2810.4,0.1776]
[1749666078868,10.05141161,2811.1,2810.4,0.1776]
[1749666079034,0.1776,2810.9,2810.4,0.1776]
[1749666079439,3.558,2811.4,2810.0,0.55]
[1749666079769,23.60801582,2811.7,2810.6,0.1776]
[1749666079770,0.1776,2811.1,2810.6,0.1776]
[1749666080137,3.55631836,2811.9,2810.6,0.1776]
[1749666080138,0.35879604,2812.9,2810.6,0.1776]
[1749666080448,10.05141161,2812.4,2810.9,0.55]
[1749666080776,10.05141161,2812.4,2810.6,0.1776]
[1749666080972,2.0387,2813.0,2810.6,0.1776]
[1749666080973,0.7777,2813.0,2811.1,10.55]
[1749666081179,0.7777,2813.0,2811.3,10.55]
[1749666081395,10.82911161,2813.0,2811.3,10.55]
[1749666081532,10.05141161,2812.4,2810.5,10.55]
[1749666081880,3.557,2812.3,2810.8,10.55]
[1749666082080,3.557,2812.5,2810.8,10.55]
[1749666082301,10.05141161,2812.2,2811.0,10.55]
[1749666082485,13.60703862,2812.5,2811.0,10.55]
[1749666082689,13.60700228,2812.5,2811.0,10.55]
[1749666082863,10.05141161,2812.5,2811.0,10.55]
[1749666083060,0.7871,2812.3,2810.5,0.29702281]
[1749666083267,10.05141161,2812.2,2810.6,1.08070228]
[1749666083511,10.05141161,2812.2,2810.7,0.55]
[1749666083800,3.55626881,2812.0,2810.7,0.29700167]
[1749666083962,3.55626237,2812.0,2810.7,0.29700167]
[1749666084170,10.0,2812.2,2810.7,0.29700167]
[1749666084369,13.60741161,2812.1,2810.7,0.29700167]
[1749666084568,10.0,2812.0,2810.7,0.29700167]
[1749666084764,10.05141161,2811.5,2810.8,0.0103846]
[1749666084969,10.0,2812.0,2810.8,0.0103846]
[1749666085165,3.556,2811.5,2810.8,0.0103846]
[1749666085362,3.556,2811.6,2810.8,0.0103846]
[1749666085562,10.0,2812.0,2810.8,0.0103846]
[1749666085770,10.0,2812.0,2810.8,0.00797201]
[1749666085983,10.0,2812.3,2810.8,0.00797201]
[1749666086184,0.8074,2812.9,2810.8,0.55797201]
[1749666086425,3.55551737,2812.6,2810.8,10.55797201]
[1749666086625,10.0,2812.4,2811.0,10.55]
[1749666086922,10.05141161,2812.7,2811.0,10.55]
[1749666086923,3.5553312,2812.7,2811.0,10.55]
[1749666087134,0.48189108,2814.0,2811.0,10.55]
[1749666087135,13.556,2812.6,2811.0,10.55]
[1749666087421,10.0,2812.4,2811.0,10.55]
[1749666087922,10.0,2812.5,2811.0,10.55]
[1749666088118,10.0,2812.5,2810.9,2.09063853]
[1749666088119,13.60624181,2813.1,2811.2,0.55]
[1749666088440,1.261,2812.7,2811.2,0.55]
[1749666088602,11.31241161,2812.7,2811.2,0.55]
[1749666088799,1.261,2812.7,2811.1,10.55]
[1749666089042,1.261,2812.7,2811.1,0.55]
[1749666089194,1.261,2812.7,2811.1,10.55]
[1749666089399,1.261,2812.7,2811.3,0.55]
[1749666089609,1.261,2812.7,2811.2,2.06014116]
[1749666089610,10.05141161,2812.5,2811.2,2.06014116]
[1749666089837,3.55580861,2812.3,2809.9,10.34809619]
[1749666090149,14.39593186,2812.5,2810.6,10.05141161]
[1749666090458,0.1776,2811.8,2811.3,0.1776]
[1749666090950,0.1776,2811.6,2811.1,0.1776]
[1749666091835,3.555,2813.0,2811.6,10.55]
[1749666091999,0.7933,2813.3,2811.6,12.61014116]
[1749666092000,3.55468522,2813.2,2811.6,12.61014116]
[1749666092355,3.555,2813.2,2811.6,12.61014116]
[1749666092496,10.0,2813.1,2811.6,12.61014116]
[1749666092701,3.555,2813.1,2811.6,12.61014116]
[1749666093034,7.10987311,2813.1,2811.6,12.61014116]
[1749666093209,10.0,2813.0,2811.6,12.61014116]
[1749666093425,10.0,2813.0,2811.8,0.55]
[1749666094166,3.55492402,2813.0,2811.8,0.55]
[1749666094465,11.2337,2814.2,2812.6,0.55]
[1749666094628,11.2337,2814.2,2812.8,0.55]
[1749666094819,3.555,2814.1,2812.8,0.55]
[1749666095014,10.481,2814.2,2812.8,0.55]
[1749666095220,3.554,2814.1,2812.8,0.55]
[1749666096027,3.554,2814.1,2811.9,10.05141161]
[1749666096028,3.55395071,2813.8,2811.9,10.05141161]
[1749666096226,10.05141161,2813.8,2812.1,0.55]
[1749666096433,4.814,2813.7,2812.1,0.55]
[1749666096646,3.55385815,2813.9,2812.3,10.55]
[1749666096952,13.55365083,2814.1,2812.3,10.55]
[1749666096953,3.554,2813.6,2812.3,10.55]
[1749666097115,3.554,2813.6,2812.0,1.00514116]
[1749666097318,3.554,2813.6,2812.4,10.0265729]
[1749666097551,3.554,2813.9,2812.8,0.55]
[1749666098126,3.554,2814.0,2812.8,0.55]
[1749666098530,2.87272563,2814.6,2812.8,0.55]
[1749666098727,2.87272563,2814.6,2812.7,10.55]
[1749666098926,2.87272563,2814.6,2812.6,10.05141161]
[1749666098927,2.87272563,2814.6,2812.9,10.55]
[1749666099139,2.87272563,2814.6,2813.4,10.55]
[1749666099549,2.87272563,2814.6,2813.9,10.05141161]
[1749666099754,2.87272563,2814.6,2813.8,0.55]
[1749666099955,2.87272563,2814.6,2814.0,0.55]
[1749666100230,2.87272563,2814.6,2814.2,0.55]
[1749666100435,2.87272563,2814.6,2813.3,10.55]
[1749666100631,2.87272563,2814.6,2813.6,10.55]
[1749666100922,2.87272563,2814.6,2813.6,10.9074156]
[1749666101334,2.87272563,2814.6,2814.0,0.55]
[1749666101541,2.87272563,2814.6,2814.2,0.55]
[1749666101775,2.87272563,2814.6,2814.5,0.7276]
[1749666102477,0.8262,2816.3,2814.6,0.55]
[1749666102658,3.552,2815.9,2814.6,0.55]
[1749666102976,0.8262,2816.3,2814.6,0.55]
[1749666102977,2.0852,2816.3,2814.6,0.55]
[1749666103274,2.0852,2816.3,2814.8,10.55]
[1749666103472,3.552,2816.4,2814.8,10.55]
[1749666103677,3.552,2816.4,2815.1,10.55]
[1749666103678,10.0,2816.4,2815.1,10.55]
[1749666103981,3.55036365,2816.7,2815.1,10.55]
[1749666104129,0.7556,2817.1,2815.1,10.91121638]
[1749666104485,3.551,2817.0,2815.3,20.60141161]
[1749666104763,3.551,2817.5,2815.7,10.55]
[1749666104928,3.54958014,2817.3,2815.7,10.55]
[1749666105292,0.7879,2817.3,2815.2,2.0962628]
[1749666105425,10.05141161,2815.7,2812.4,3.55566548]
[1749666105625,10.05141161,2815.7,2812.2,1.01568116]
[1749666105626,7.89061422,2815.6,2813.5,10.05141161]
[1749666105928,4.33954479,2815.6,2813.8,10.05141161]
[1749666106271,3.551,2815.5,2813.8,10.05141161]
[1749666106471,3.551,2815.5,2813.9,0.55]
[1749666106772,0.7879,2815.6,2813.6,5.81514116]
[1749666106773,3.551,2815.6,2813.6,5.81514116]
[1749666106973,3.55199776,2815.4,2813.6,1.00514116]
[1749666107228,3.55248209,2815.0,2813.7,1.10565528]
[1749666107385,10.0,2815.3,2813.6,10.56141161]
[1749666107536,3.551,2815.0,2813.7,10.0]
[1749666108748,3.55135939,2815.9,2814.3,10.55]
[1749666108979,7.10226882,2815.9,2814.6,10.55]
[1749666109182,10.0,2815.8,2814.6,0.55]
[1749666109482,3.551,2815.8,2814.4,0.55]
[1749666109883,3.551,2815.8,2814.4,10.55]
[1749666110035,3.551,2815.8,2814.0,1.00514116]
[1749666110036,3.551,2815.8,2814.0,11.00514116]
[1749666110242,3.55151472,2815.7,2814.1,1.65051412]
[1749666110583,3.55190211,2815.4,2814.1,1.65051412]
[1749666110781,7.10241886,2815.8,2814.1,1.65051412]
[1749666111078,3.551,2815.8,2814.1,1.65051412]
[1749666111277,0.32276895,2815.7,2813.8,0.55]
[1749666111486,3.87440134,2815.6,2813.8,0.55]
[1749666111682,3.551767,2815.5,2813.8,0.55]
[1749666111851,3.551,2815.8,2813.6,11.54559429]
[1749666111852,4.32404838,2815.4,2813.6,0.55]
[1749666112053,3.55155265,2815.7,2813.6,0.55]
[1749666112251,3.55187353,2815.5,2813.6,0.55]
[1749666112489,0.1776,2815.1,2814.6,0.1776]
[1749666113041,3.55251272,2815.0,2813.5,0.86815429]
[1749666113270,0.1776,2814.5,2814.0,0.1776]
[1749666113587,0.1776,2814.3,2813.8,0.1776]
[1749666113786,1.258,2814.2,2812.0,1.258]
[1749666113992,3.55394729,2813.8,2812.0,1.258]
[1749666114198,0.1776,2813.5,2813.0,0.1776]
[1749666114362,0.1776,2813.5,2813.1,0.29674828]
[1749666114675,0.1776,2813.3,2813.1,0.29674828]
[1749666115358,4.3034,2813.8,2813.1,0.29674828]
[1749666115359,3.55,2813.8,2813.1,0.29674828]
[1749666115566,0.1776,2813.5,2813.0,0.1776]
[1749666115777,3.55413738,2813.7,2812.4,0.3538912]
[1749666116004,0.1776,2813.3,2812.8,0.1776]
[1749666116758,0.81390918,2814.3,2812.4,0.34789244]
[1749666116960,0.1776,2813.5,2813.0,0.1776]
[1749666117387,0.1776,2813.8,2813.3,0.1776]
[1749666117772,3.55379636,2813.9,2812.5,0.55]
[1749666117963,0.1776,2813.5,2813.0,0.1776]
[1749666119461,0.32262651,2814.0,2813.1,0.55]
[1749666119741,3.55309424,2814.5,2813.1,0.55]
[1749666119986,3.5536496,2814.1,2813.1,0.55]
[1749666120198,0.81521202,2814.6,2813.1,0.55]
[1749666120507,0.81521202,2814.6,2812.6,10.0]
[1749666120508,3.55322635,2814.4,2812.7,0.55]
[1749666120703,0.32267726,2814.4,2812.9,0.55]
[1749666121000,3.55364535,2814.1,2812.8,1.055]
[1749666121301,3.55387435,2813.9,2812.4,0.35133464]
[1749666121462,0.7599,2814.0,2812.2,11.258]
[1749666121669,0.7599,2814.0,2812.2,14.809]
[1749666121879,0.7599,2814.0,2812.3,0.55]
[1749666122505,10.0,2814.2,2812.3,0.55]
[1749666122727,3.55342139,2814.2,2812.5,0.55]
[1749666122925,10.0,2814.2,2812.5,0.55]
[1749666123298,3.55366316,2814.0,2812.6,0.01975711]
[1749666123540,10.81521202,2814.2,2812.6,0.01975711]
[1749666123728,10.8052,2813.9,2812.6,0.01975711]
[1749666123898,3.551,2813.8,2812.6,0.01975711]
[1749666124428,0.7987,2814.3,2812.6,0.01975711]
[1749666124585,0.8180535,2814.4,2812.7,1.7362163]
[1749666124781,1.14100841,2814.6,2812.7,1.7362163]
[1749666124984,1.258,2814.7,2813.0,10.55]
[1749666125395,11.258,2814.7,2813.0,10.55]
[1749666125586,1.258,2814.7,2813.0,10.55]
[1749666125787,3.551,2815.6,2813.4,10.55]
[1749666126013,0.81856499,2815.5,2813.4,10.55]
[1749666126211,0.81856499,2815.4,2813.4,10.55]
[1749666126410,4.319,2815.6,2813.4,10.55]
[1749666126615,0.768,2815.6,2813.8,10.55]
[1749666126811,0.768,2815.6,2814.0,10.55]
[1749666126991,0.768,2815.6,2814.0,0.55]
[1749666127202,2.07691294,2815.9,2814.0,0.55]
[1749666127410,7.92158268,2815.8,2814.0,0.91067297]
[1749666127613,3.55160585,2815.7,2814.0,0.91067297]
[1749666127932,3.551,2815.8,2814.2,0.55]
[1749666128106,0.32309604,2815.7,2814.2,0.55]
[1749666128438,3.551,2815.8,2814.2,0.55]
[1749666128640,3.551,2815.8,2814.1,0.31202324]
[1749666128641,10.0,2815.7,2814.1,0.31202324]
[1749666128839,3.55272448,2814.8,2812.9,12.80359429]
[1749666129041,3.55272448,2814.8,2812.9,1.258]
[1749666129042,3.55294007,2814.6,2812.9,1.258]
[1749666129202,3.55317046,2814.4,2812.9,1.258]
[1749666129402,3.55337221,2814.3,2812.5,12.80359429]
[1749666129720,0.1776,2813.6,2813.1,0.1776]
[1749666130205,0.1776,2814.2,2813.5,0.1776]
[1749666130412,3.551,2814.6,2813.6,0.55]
[1749666130728,3.551,2814.6,2813.0,10.0]
[1749666130729,3.551,2814.7,2813.9,0.55]
[1749666130926,0.1776,2814.6,2814.1,0.1776]
[1749666131516,3.551,2815.1,2813.5,0.89959173]
[1749666131719,4.809,2815.3,2814.4,0.55]
[1749666131916,0.1776,2815.0,2814.5,0.1776]
[1749666132557,3.55237831,2815.1,2813.7,0.55]
[1749666132759,1.08290683,2815.1,2812.7,10.0]
[1749666132919,0.1776,2814.1,2813.6,0.1776]
[1749666134241,0.1776,2813.9,2813.4,0.1776]
[1749666134601,0.1776,2813.9,2813.5,0.0555584]
[1749666136005,3.55268351,2814.8,2813.6,0.55]
[1749666136006,3.551,2814.5,2813.6,0.55]
[1749666136210,3.551,2814.5,2813.5,0.0555584]
[1749666136211,1.258,2814.8,2813.8,0.55]
[1749666136532,3.55234651,2815.1,2813.8,0.55]
[1749666136735,3.551,2815.2,2813.8,0.55]
[1749666136920,3.55248544,2815.0,2813.8,0.55]
[1749666137118,3.5526781,2814.8,2813.8,0.55]
[1749666137368,3.55257026,2814.9,2813.2,0.55]
[1749666137517,3.5523638,2815.1,2813.4,0.55]
[1749666138235,3.551,2815.2,2813.4,0.55]
[1749666138450,7.1033603,2815.1,2813.4,0.55]
[1749666138664,3.551,2815.1,2813.4,0.55]
[1749666138872,3.55248296,2815.0,2813.4,0.55]
[1749666139163,3.5524079,2815.0,2813.4,0.55]
[1749666139364,3.551,2815.1,2813.4,0.55]
[1749666139563,3.55255883,2814.9,2813.4,0.55]
[1749666139766,3.5527897,2814.7,2813.4,0.55]
[1749666139969,3.55271197,2814.8,2813.4,0.55]
[1749666140373,0.8227,2814.9,2813.3,1.106]
[1749666140533,3.55302663,2814.6,2812.9,0.36011404]
[1749666140739,3.55310875,2814.5,2813.0,0.55]
[1749666140933,4.80996354,2814.6,2812.8,0.55]
[1749666141233,14.8099427,2814.6,2812.8,10.90903109]
[1749666141433,11.257,2814.6,2813.0,0.55]
[1749666141755,11.257,2814.6,2812.9,10.0]
[1749666141756,4.80993349,2814.6,2813.2,0.55]
[1749666142070,9.99584469,2814.2,2812.5,1.257]
[1749666142269,9.99584469,2813.6,2812.4,0.51]
[1749666142569,3.551,2813.5,2812.1,0.35431001]
[1749666142871,3.551,2813.5,2812.2,0.29684325]
[1749666143470,7.10530682,2813.5,2812.1,1.03501547]
[1749666143768,3.551,2813.5,2812.2,0.55]
[1749666143972,3.551,2813.5,2812.1,1.03501547]
[1749666144271,10.7922,2813.4,2812.1,1.03501547]
[1749666144449,3.551,2813.3,2811.6,9.99584469]
[1749666144651,0.7962,2813.8,2812.2,9.99584469]
[1749666144833,10.0,2813.7,2812.4,0.55]
[1749666145037,10.0,2813.7,2811.9,0.55]
[1749666145038,3.55462197,2813.3,2811.9,0.55]
[1749666145264,10.0,2813.5,2811.9,0.55]
[1749666145572,5.6042,2813.8,2812.1,9.99584469]
[1749666145877,13.551,2814.1,2812.5,10.55]
[1749666146183,11.257,2814.2,2812.7,9.99584469]
[1749666146363,0.1776,2813.8,2813.3,0.1776]
[1749666146767,0.1776,2813.8,2813.4,0.55]
[1749666146982,0.1776,2814.4,2813.7,0.1776]
[1749666147165,3.551,2814.3,2812.7,0.55]
[1749666147365,0.1776,2813.8,2813.3,0.1776]
[1749666148186,3.55361941,2814.1,2812.9,0.55]
[1749666148355,0.8146,2814.7,2813.2,0.55]
[1749666148540,0.1776,2814.5,2814.0,0.1776]
[1749666148741,0.1776,2814.5,2814.1,0.55]
[1749666148941,0.1776,2814.8,2814.3,0.1776]
[1749666149692,3.55237855,2815.1,2812.7,11.257]
[1749666149988,0.1776,2814.6,2814.1,0.1776]
[1749666150139,0.1776,2814.9,2814.4,0.1776]
[1749666150339,0.1776,2814.6,2814.1,0.1776]
[1749666150565,10.0,2814.9,2813.9,0.1776]
[1749666150566,0.1776,2814.4,2813.9,0.1776]
[1749666150767,0.1776,2814.4,2814.0,0.55]
[1749666151073,19.99584469,2815.0,2813.3,10.0]
[1749666151300,0.1776,2814.3,2813.8,0.1776]
[1749666152088,3.55378031,2814.0,2812.8,1.83633902]
[1749666152428,3.55378031,2814.0,2812.2,1.257]
[1749666152429,3.55374064,2814.0,2812.4,0.51]
[1749666152539,3.55401528,2813.8,2812.4,0.51]
[1749666152745,3.55405617,2813.7,2812.4,0.51]
[1749666152945,13.55007054,2813.6,2812.0,1.05458447]
[1749666153247,3.55437341,2813.5,2812.2,0.55]
[1749666153446,9.99584469,2812.9,2812.2,0.29684325]
[1749666153682,9.99584469,2813.0,2812.2,0.29684325]
[1749666153863,13.55087948,2813.0,2812.2,0.29684325]
[1749666154074,9.99584469,2812.7,2812.2,0.29684325]
[1749666154386,3.55580841,2812.3,2812.2,0.29684325]
[1749666154990,14.10580841,2812.3,2812.2,0.29684325]
[1749666155158,10.0,2812.3,2812.2,0.29684325]
[1749666155475,17.10780841,2812.3,2812.2,0.29684325]
[1749666156582,10.0,2812.3,2812.2,0.29684325]
[1749666156881,3.552,2812.3,2812.2,0.29684325]
[1749666157181,29.45407674,2812.3,2812.2,0.29684325]
[1749666158299,15.89826833,2812.3,2809.9,1.43938043]
[1749666158504,7.87513393,2812.3,2810.1,10.0]
[1749666158711,7.87513393,2812.3,2809.9,1.43938043]
[1749666158712,0.7858,2812.7,2810.6,0.55]
[1749666158905,0.7858,2812.7,2810.9,10.55]
[1749666159107,13.553,2812.6,2810.9,10.55]
[1749666159474,3.553,2812.6,2810.9,10.55]
[1749666159674,3.553,2812.6,2811.1,0.55]
[1749666159877,3.553,2812.6,2811.1,10.55]
[1749666160085,11.258,2812.9,2811.1,0.55]
[1749666160086,4.81305692,2812.9,2811.1,0.55]
[1749666160391,3.553,2812.5,2811.1,0.55]
[1749666161913,3.553,2812.4,2811.1,0.55]
[1749666162118,3.7306,2812.4,2811.9,0.1776]
[1749666162324,3.7306,2812.4,2811.1,10.0]
[1749666162325,0.1776,2812.1,2811.6,0.1776]
[1749666162524,0.1776,2811.5,2811.0,0.1776]
[1749666162696,3.553,2811.4,2809.9,0.34694398]
[1749666163020,3.553,2811.3,2810.0,0.29707566]
[1749666163223,11.57896833,2811.9,2810.0,0.29707566]
[1749666163224,3.553,2811.2,2810.0,0.29707566]
[1749666163392,0.1776,2810.9,2810.4,0.1776]
[1749666163907,0.1776,2811.1,2810.6,0.1776]
[1749666164107,10.0,2812.0,2810.7,0.55]
[1749666164108,3.553,2811.6,2810.7,0.55]
[1749666164297,0.1776,2811.3,2810.8,0.1776]
[1749666164491,3.553,2811.6,2809.8,0.36143464]
[1749666164693,0.1776,2810.9,2810.4,0.1776]
[1749666165212,0.1776,2810.9,2809.8,0.55]
[1749666165380,0.1776,2811.2,2810.7,0.1776]
[1749666165582,0.1776,2811.2,2810.8,0.55]
[1749666165786,0.1776,2811.6,2810.3,0.55]
[1749666166010,0.1776,2811.6,2811.1,0.1776]
[1749666166223,3.553,2812.1,2810.1,0.55]
[1749666166430,0.1776,2811.1,2810.6,0.1776]
[1749666166800,3.553,2811.6,2809.6,10.0]
[1749666167096,0.1776,2811.2,2810.7,0.1776]
[1749666167295,3.47915516,2811.6,2809.9,0.55]
[1749666167550,0.1776,2810.8,2810.3,0.1776]
[1749666168121,5.63802025,2811.5,2809.8,0.51]
[1749666168322,2.0811,2811.5,2810.4,0.0555584]
[1749666168511,3.554,2811.5,2810.5,0.55]
[1749666168856,0.1776,2811.2,2810.7,0.1776]
[1749666170247,3.554,2811.7,2810.8,0.0555584]
[1749666170746,0.1776,2811.2,2810.8,0.0555584]
[1749666171335,3.554,2811.7,2810.8,0.0555584]
[1749666171336,0.1776,2810.9,2810.8,0.0555584]
[1749666171713,0.8231,2811.9,2810.8,0.0555584]
[1749666172051,1.256,2812.0,2810.8,0.0555584]
[1749666172052,0.1776,2810.9,2810.8,0.0555584]
[1749666172223,3.7316,2810.9,2810.8,0.0555584]
[1749666174016,13.7316,2810.9,2810.8,0.0555584]
[1749666174537,3.7316,2810.9,2810.8,0.0555584]
[1749666175143,0.1776,2810.9,2810.8,0.0555584]
[1749666175346,3.7316,2810.9,2810.8,0.0555584]
[1749666176304,3.555,2811.1,2810.8,0.0555584]
[1749666176711,0.1776,2810.9,2810.8,0.0555584]
[1749666177315,3.555,2811.1,2810.8,0.0555584]
[1749666177537,3.7326,2811.1,2810.8,0.0555584]
[1749666178169,3.555,2811.1,2810.8,0.0555584]
[1749666178367,14.35169182,2811.0,2810.8,0.0555584]
[1749666178530,10.79418499,2811.0,2810.8,0.0555584]
[1749666178732,3.55757942,2810.9,2810.8,0.0555584]
[1749666178934,13.55757942,2810.9,2810.8,0.0555584]
[1749666179873,13.90475595,2810.9,2810.8,0.0555584]
[1749666180045,14.45475595,2810.9,2810.8,0.0555584]
[1749666180246,14.45475595,2810.9,2809.2,0.2331]
[1749666180247,3.55876821,2810.0,2809.2,0.2331]
[1749666180577,10.89717653,2810.9,2809.2,0.2331]
[1749666180578,0.1776,2809.3,2809.2,0.0555]
[1749666180750,3.555,2809.7,2809.2,0.0555]
[1749666181082,0.1776,2809.6,2809.2,0.0555]
[1749666181251,3.555,2809.7,2809.2,0.0555]
[1749666181571,4.91853743,2811.4,2809.5,0.1776]
[1749666181572,0.1776,2810.0,2809.5,0.1776]
[1749666181737,3.555,2810.1,2809.2,0.0555]
[1749666181937,10.78658499,2810.0,2809.2,0.0555]
[1749666182163,0.1776,2809.4,2809.2,0.0555]
[1749666182613,3.555,2810.3,2809.3,0.7276]
[1749666182770,11.27488499,2811.0,2809.5,0.55]
[1749666182771,0.7782,2811.0,2809.5,0.55]
[1749666182972,0.7782,2811.0,2809.7,0.55]
[1749666183171,0.7782,2811.3,2809.9,0.55]
[1749666183479,3.555,2811.2,2810.3,0.55]
[1749666183817,3.555,2811.1,2810.3,0.55]
[1749666184224,3.555,2811.1,2810.3,10.55]
[1749666184529,2.0412,2811.7,2810.5,0.55]
[1749666184897,2.0412,2811.7,2810.7,0.55]
[1749666184898,3.555,2811.6,2810.7,0.55]
[1749666185234,1.256,2811.7,2810.7,0.55]
[1749666185397,3.555,2811.5,2810.7,0.55]
[1749666185800,1.256,2811.7,2810.7,0.55]
[1749666186126,4.811,2811.7,2810.8,1.06055]
[1749666186489,4.811,2811.7,2810.9,0.0289855]
[1749666187635,4.811,2811.7,2811.0,0.55]
[1749666187928,4.78044983,2811.7,2810.9,0.55]
[1749666188687,4.78044983,2811.7,2810.8,1.06055]
[1749666188907,3.555,2811.8,2810.9,0.0555]
[1749666189126,3.555,2811.8,2811.0,0.55]
[1749666189337,3.555,2811.8,2811.1,1.11555]
[1749666190228,3.555,2811.9,2811.0,0.55]
[1749666190409,3.555,2811.9,2810.9,0.0555]
[1749666190844,7.11131669,2811.9,2810.9,0.0555]
[1749666190990,3.555,2811.9,2810.9,0.0555]
[1749666191186,0.7723,2811.8,2810.9,0.0555]
[1749666191420,3.5566879,2811.7,2810.9,0.0555]
[1749666191615,4.32874071,2811.8,2810.9,0.0555]
[1749666191820,3.5567264,2811.6,2810.9,0.0555]
[1749666192240,20.79118499,2811.8,2810.5,0.0555]
[1749666192406,3.55742081,2811.1,2810.2,0.0555]
[1749666192599,0.1776,2810.7,2810.2,0.2331]
[1749666193392,0.1776,2810.7,2810.3,0.01444888]
[1749666194695,4.313,2811.0,2810.3,0.01444888]
[1749666194894,10.0,2811.4,2810.3,0.01444888]
[1749666194895,0.758,2811.4,2810.3,0.01444888]
[1749666195121,0.1776,2810.8,2810.3,0.19204888]
[1749666195320,0.1776,2810.8,2810.4,0.55]
[1749666195491,1.256,2811.6,2810.4,0.55]
[1749666195697,0.1776,2811.2,2810.7,0.1776]
[1749666195931,3.7326,2811.2,2810.7,0.1776]
[1749666196623,0.1776,2811.2,2810.7,0.1776]
[1749666197249,0.1776,2810.9,2810.4,0.1776]
[1749666197397,0.15503657,2810.9,2810.4,0.1776]
[1749666198315,0.15503657,2810.9,2810.5,1.07276]
[1749666199156,0.1776,2811.1,2810.6,0.2331]
[1749666199873,0.8155,2811.8,2810.7,0.55]
[1749666200150,0.1776,2811.4,2810.9,0.1776]
[1749666200854,1.253,2812.1,2811.1,0.0555]
[1749666201161,0.1776,2811.9,2811.3,0.1776]
[1749666201450,0.1776,2811.9,2811.2,0.1776]
[1749666201451,0.1776,2811.7,2811.2,0.1776]
[1749666201845,0.55,2810.9,2809.0,0.0555]
[1749666202137,10.0,2810.4,2809.1,0.29717084]
[1749666202584,0.8107,2810.0,2809.1,0.29717084]
[1749666202712,4.808,2809.9,2809.1,0.29717084]
[1749666203059,3.55905391,2809.8,2809.1,0.29717084]
[1749666203240,4.808,2809.9,2809.1,0.29717084]
[1749666203554,3.55917922,2809.7,2809.1,0.29717084]
[1749666204053,8.36684696,2809.9,2809.0,0.0555]
[1749666204054,3.55902962,2809.8,2809.0,0.0555]
[1749666204414,4.808,2809.9,2809.0,0.0555]
[1749666204824,8.36687527,2809.9,2809.0,0.0555]
[1749666205032,8.36691715,2809.9,2809.0,0.0555]
[1749666205352,4.808,2809.8,2808.2,0.66666667]
[1749666205557,10.0,2809.4,2808.3,0.0555]
[1749666205725,3.55956043,2809.4,2808.4,0.55]
[1749666206237,0.8155,2809.2,2808.2,0.66666667]
[1749666206449,7.11594286,2809.1,2808.2,0.66666667]
[1749666206820,3.556,2809.1,2808.2,0.66666667]
[1749666207143,3.56006791,2809.0,2808.2,0.66666667]
[1749666207344,3.556,2809.1,2808.2,0.66666667]
[1749666207750,7.11588461,2809.1,2808.2,0.66666667]
[1749666207916,3.556,2809.0,2808.2,0.66666667]
[1749666208650,3.556,2808.9,2808.3,0.55]
[1749666208874,1.253,2809.5,2808.5,0.55]
[1749666209016,1.253,2810.7,2809.3,10.01888499]
[1749666209340,3.556,2810.6,2809.7,0.0555]
[1749666209557,3.556,2810.5,2809.8,0.55]
[1749666209719,1.253,2810.7,2810.0,0.55]
[1749666209921,1.253,2810.7,2809.7,0.0555]
[1749666209922,3.556,2810.6,2809.7,0.0555]
[1749666210562,3.55828559,2810.4,2809.0,0.55]
[1749666210729,10.7812,2810.5,2809.2,0.55]
[1749666210933,14.33936089,2810.5,2809.2,0.55]
[1749666211129,3.55821235,2810.4,2809.2,0.55]
[1749666211454,3.55855641,2810.2,2809.1,0.0555]
[1749666211755,0.1776,2809.7,2809.2,0.1776]
[1749666211955,3.556,2809.6,2809.2,0.1776]
[1749666212156,0.1776,2809.7,2809.2,0.7276]
[1749666212332,1.253,2810.8,2809.3,10.55]
[1749666212525,4.809,2810.8,2809.9,10.55]
[1749666212720,0.1776,2810.6,2810.1,0.1776]
[1749666213073,0.1776,2810.6,2809.9,0.55]
[1749666213074,3.556,2811.1,2810.3,0.55]
[1749666213217,0.1776,2811.0,2810.5,0.1776]
[1749666213888,3.556,2811.1,2810.2,10.07438499]
[1749666213889,3.556,2811.1,2810.2,0.0555]
[1749666214093,0.1776,2810.3,2809.5,0.0555]
[1749666214291,0.1776,2809.9,2809.5,0.0555]
[1749666214794,0.1776,2810.1,2809.7,0.55]
[1749666215094,0.1776,2810.6,2810.2,0.0555]
[1749666215589,0.15944767,2810.6,2810.2,0.0555]
[1749666216092,0.796,2811.4,2810.2,0.0555]
[1749666216285,0.1776,2810.7,2810.2,0.2331]
[1749666216694,4.35296574,2811.4,2810.2,0.0555]
[1749666216695,3.556,2810.9,2810.2,0.0555]
[1749666216984,3.7336,2810.9,2810.4,0.1776]
[1749666217185,3.7336,2810.9,2809.7,0.55]
[1749666217186,3.7336,2810.9,2809.6,0.0555]
[1749666218076,3.7336,2810.9,2809.7,0.55]
[1749666218387,3.556,2810.9,2809.7,0.55]
[1749666218599,3.55782903,2810.8,2809.7,0.55]
[1749666218751,3.556,2810.9,2809.7,0.55]
[1749666219351,0.796,2811.4,2809.7,10.56888499]
[1749666219587,0.796,2811.4,2809.9,0.55]